Cogmind - Beta 9.6 *** ADVENTURER MODE // 2020.06.18 @ 00:04:16 Player: Skitgris Result: Destroyed by Y-45 Defender with Beam Rifle Performance ------------- Evolutions (1) 500 Regions Visited (2) 400 Robots Destroyed (29) 145 Value Destroyed (664) 664 Prototype IDs (0) 0 Alien Tech Used (0) 0 Bonus (0) 0 TOTAL SCORE: 1709 Bonus ------- None Cogmind --------- Core Integrity 0/400 Matter 238/300 Energy 100/100 System Corruption 0% Temperature Cool (9) Movement Core (200) Ox3 Location -9/Materials Parts ------- > --- POWER (1) -------- (None) > --- PROPULSION (3) --- (None) > --- UTILITY (3) ------ Small Storage Unit Medium Storage Unit > --- WEAPON (2) ------- (None) > --- INVENTORY (10) --- Targeting Computer Peak State ------------ > --- POWER ------------ Light Ion Engine > --- PROPULSION ------- Light Treads Aluminum Leg Aluminum Leg > --- UTILITY ---------- Medium Storage Unit > --- WEAPON ----------- Light EM Pulse Cannon Maul > --- INVENTORY -------- Light Ion Engine Improved Ion Engine Improved Ion Engine Small Storage Unit Small Laser Assault Rifle Assault Rifle Mining Claw [Rating: 10] Favorites ----------- Power Light Ion Engine Engine Light Ion Engine Propulsion Aluminum Leg Treads Light Treads Leg Aluminum Leg Wheel Wheel Flight Unit Flight Unit Utility Medium Storage Unit Device Sensor Array Storage Medium Storage Unit Processor Targeting Computer Protection Light Armor Plating Weapon Assault Rifle Energy Gun Small Laser Energy Cannon Light EM Pulse Cannon Ballistic Gun Assault Rifle Impact Weapon Maul Slashing Weapon Mining Claw Build | -11 -10 -9 ------- Run | Scr Mat Mat Slots Evolved 2 | . . 2 Power . | . . . Propulsion 1 | . . 1 Utility 1 | . . 1 Weapon . | . . . Parts Attached 32 | 6 2 24 Power 6 | 1 . 5 Engine 6 | 1 . 5 Core . | . . . Reactor . | . . . Propulsion 8 | 2 1 5 Treads 1 | . . 1 Leg 4 | 1 1 2 Wheel 2 | 1 . 1 Hover . | . . . Flight 1 | . . 1 Utility 6 | 1 1 4 Device 1 | . . 1 Storage 3 | 1 1 1 Processor 1 | . . 1 Hackware . | . . . Protection 1 | . . 1 Artifact . | . . . Weapon 12 | 2 . 10 Energy Gun 3 | 1 . 2 Energy Cannon 1 | . . 1 Ballistic Gun 4 | 1 . 3 Ballistic Cannon . | . . . Launcher . | . . . Special Weapon . | . . . Impact Weapon 2 | . . 2 Slashing Weapon 2 | . . 2 Piercing Weapon . | . . . Special Melee Weapon . | . . . Unidentified Prototypes . | . . . Parts Lost 17 | . . 17 Power 4 | . . 4 Propulsion 4 | . . 4 Utility 3 | . . 3 Weapon 6 | . . 6 Highest Loss Streak 9 | . . 9 Average Slot Usage (%) 68 | . 85 66 Engine 10 | . 14 9 Treads 3 | . . 3 Leg 17 | . 27 15 Wheel 1 | . 1 1 Storage 13 | . 14 13 Protection 2 | . . 2 Energy Gun 2 | . 14 1 Ballistic Gun 6 | . 14 5 Impact Weapon 4 | . . 5 Slashing Weapon 4 | . . 5 Naked Turns . | . . . Heaviest Build 21 | 10 14 21 Greatest Support 30 | 10 20 30 Greatest Overweight (x) 6 | 2 . 6 Average Overweight (x) 1 | . . 1 Largest Inventory Capacity 10 | 6 10 10 Average Capacity 8 | 5 7 8 Most Carried 8 | 6 4 8 Average Carried 5 | 2 3 5 Final Capacity 10 | 6 8 10 Final Carried 4 | 3 4 1 Class Distribution -------------------- 100% | Mutant Dominant Class ---------------- Mutant | -10/Materials Mutant | -9/Materials Resources | -11 -10 -9 ----------- Run | Scr Mat Mat Matter Collected 468 | 212 . 256 Remotely . | . . . Salvage Created 871 | . 27 844 Parts 52 | . . 52 Haulers Intercepted . | . . . Recyclers Shooed 1 | . . 1 Parts Field Recycled . | . . . Retrieved Matter . | . . . Parts Self-Destructed . | . . . Prevented . | . . . Kills | -11 -10 -9 ------- Run | Scr Mat Mat Combat Hostiles Destroyed 26 | . . 26 Melee 9 | . . 9 Guns 8 | . . 8 Cannons 2 | . . 2 Classes Destroyed 6 | . 1 5 Worker 1 | . . 1 Watcher 2 | . 1 1 Swarmer 13 | . . 13 Grunt 9 | . . 9 Duelist 1 | . . 1 Sentry 3 | . . 3 Best Kill Streak 6 | . 1 6 Combat Bots Only 8 | . . 8 Max Kills in Single Turn 1 | . 1 1 Gunslinging . | . . . Exploded . | . . . Melee 1 | . . 1 Uniques/NPCs Destroyed . | . . . Combat | -11 -10 -9 -------- Run | Scr Mat Mat Damage Taken 1737 | . . 1737 Core 405 | . . 405 Absorbed by Shields . | . . . Core Remaining (%) 100 | 100 100 . Volleys Fired 36 | . 3 33 Largest 2 | . 2 2 Hottest 60 | . 60 60 Shots Fired 45 | . 5 40 Gun 41 | . 5 36 Cannon 4 | . . 4 Launcher . | . . . Special . | . . . Kinetic 25 | . 3 22 Thermal 9 | . 2 7 Explosive . | . . . Electromagnetic 11 | . . 11 Robot Hit Streak 14 | . 2 14 Robot Miss Streak 3 | . 3 1 Penetration Max . | . . . Secondary Targets . | . . . Shots Hit Robots 96 | . 2 94 Core Hits 29 | . 2 27 Critical Hits . | . . . Critical Kills . | . . . Critical Parts Destroyed . | . . . Melee Attacks 63 | . . 63 Impact 41 | . . 41 Slashing 22 | . . 22 Piercing . | . . . Sneak Attacks 2 | . . 2 Combat Hostiles 1 | . . 1 Follow-up Attacks 3 | . . 3 Damage Inflicted 1888 | . 21 1867 Guns 395 | . 21 374 Cannons 83 | . . 83 Explosions . | . . . Melee 1410 | . . 1410 Ramming . | . . . Kinetic 244 | . 10 234 Thermal 86 | . 11 75 Explosive . | . . . Electromagnetic 148 | . . 148 Impact 935 | . . 935 Slashing 475 | . . 475 Piercing . | . . . Highest Corruption . | . . . Average Corruption . | . . . Corruption Purged . | . . . Overload Shots . | . . . Overflow Damage 138 | . . 138 Projectiles . | . . . Explosions . | . . . Melee 138 | . . 138 Knockbacks 2 | . . 2 Impact 2 | . . 2 Kinetic . | . . . Secondary . | . . . Self-Inflicted Damage . | . . . Shots . | . . . Rammed . | . . . Targets Rammed . | . . . Kicked . | . . . Crushed . | . . . Highest Temperature 40 | . . 40 Average Temperature 15 | . . 15 Received Heat Transfer 708 | . . 708 Siege Activations . | . . . Robots Corrupted 1 | . . 1 Combat Hostiles 1 | . . 1 Parts Fried 4 | . . 4 Impact Corruptions 15 | . . 15 Robots Melted . | . . . Combat Hostiles . | . . . Parts Melted . | . . . Heat Transferred 200 | . 25 175 Parts Sabotaged . | . . . Parts Stolen . | . . . Parts Stripped . | . . . Power Chain Reactions . | . . . Missiles Intercepted . | . . . Alert | -11 -10 -9 ------- Run | Scr Mat Mat Peak Influence 320 | . 37 320 Average Influence 131 | . 20 157 Maximum Alert Level 1 | . . 1 Low Security (%) 75 | 100 100 69 Level 1 24 | . . 30 Level 2 . | . . . Level 3 . | . . . Level 4 . | . . . Level 5 . | . . . High Security . | . . . Max Security . | . . . Squads Dispatched 1 | . . 1 Investigation 1 | . . 1 Extermination . | . . . Reinforcement . | . . . Assault . | . . . Garrison . | . . . Intercept . | . . . Construction Impeded . | . . . Haulers Reinforced . | . . . Stealth | -11 -10 -9 --------- Run | Scr Mat Mat Distress Signals 1 | . . 1 Communications Jammed . | . . . Distress Signals . | . . . Times Spotted 33 | . 2 31 Peak Tracking Total 9 | . 2 9 Tactical Retreats 1 | . . 1 Traps | -11 -10 -9 ------- Run | Scr Mat Mat Traps Triggered 2 | . . 2 Indirectly . | . . . Trap Hack Attempts . | . . . Triggered . | . . . Disarmed . | . . . Reprogrammed . | . . . Reused . | . . . Traps Extracted . | . . . Installed . | . . . Triggered . | . . . Machines | -11 -10 -9 ---------- Run | Scr Mat Mat Machines Disabled . | . . . Max in Single Turn . | . . . Machines Sabotaged . | . . . Garrisons Compromised . | . . . Overloaded Fab Kills . | . . . Fab Network Shutdowns . | . . . Hacking | -11 -10 -9 --------- Run | Scr Mat Mat Machines Accessed . | . . . Terminals . | . . . Fabricators . | . . . Repair Stations . | . . . Recycling Units . | . . . Scanalyzers . | . . . Garrison Access . | . . . Total Hacks . | . . . Successful . | . . . Failed . | . . . Catastrophic . | . . . Database Lockouts . | . . . Manual . | . . . Terminals . | . . . Fabricators . | . . . Repair Stations . | . . . Recycling Units . | . . . Scanalyzers . | . . . Garrison Access . | . . . Terminal Hacks . | . . . Fabricator Hacks . | . . . Repair Station Hacks . | . . . Recycling Unit Hacks . | . . . Scanalyzer . | . . . Garrison Access Hacks . | . . . Unauthorized Hacks . | . . . Terminals . | . . . Fabricators . | . . . Repair Stations . | . . . Recycling Units . | . . . Scanalyzers . | . . . Garrison Access . | . . . Data Cores Recovered . | . . . Used . | . . . Hacking Detections . | . . . Full Trace Events . | . . . Feedback Events . | . . . Feedback Blocked . | . . . Robot Schematics Acquired . | . . . Robots Built . | . . . Matter . | . . . Time . | . . . Total Robot Build Rating . | . . . Part Schematics Acquired . | . . . Parts Built . | . . . Matter . | . . . Time . | . . . Total Part Build Rating . | . . . Parts Repaired . | . . . Time . | . . . Parts Recycled . | . . . Recycled Matter . | . . . Retrieved Matter . | . . . Retrieved Components . | . . . Parts Scanalyzed . | . . . Part Schematics Acquired . | . . . Parts Damaged . | . . . Bothacking | -11 -10 -9 ------------ Run | Scr Mat Mat Used RIF Installer . | . . . Robots Hacked . | . . . Non-combat . | . . . Combat . | . . . Robot Hacks Applied . | . . . Relay Couplers Released . | . . . Robots Rewired . | . . . Allies Hacked . | . . . Hacks Repelled . | . . . Allies | -11 -10 -9 -------- Run | Scr Mat Mat Total Allies . | . . . Largest Group . | . . . Highest-Rated Group . | . . . Highest-Rated Ally . | . . . Total Orders . | . . . Ally Attacks . | . . . Total Damage . | . . . Kills . | . . . Allies Corrupted . | . . . Allies Melted . | . . . Intel | -11 -10 -9 ------- Run | Scr Mat Mat Robot Analysis Total . | . . . Derelict Logs Recovered . | . . . Drone Launches . | . . . Drone Recoveries . | . . . Exploration | -11 -10 -9 ------------- Run | Scr Mat Mat Turns Passed 1066 | 55 142 869 Spaces Moved 419 | 34 95 290 Core 82 | 19 . 63 Treads . | . . . Legs 302 | . 87 215 Wheels 23 | 15 8 . Hover . | . . . Flight 12 | . . 12 Fastest Speed 50 | 50 80 120 Average Speed 153 | 105 116 171 Slowest Speed 360 | 150 120 360 Overloaded Moves . | . . . Propulsion Burnouts . | . . . Robots Hopped . | . . . Cave-ins Triggered . | . . . Exploration Rate (%) 23 | 4 27 39 Regions Visited 2 Branch Regions . Pre-discovered Areas . | . . . Known Exits Taken . | . . . Unknown Exits Taken 2 | 1 1 . Scrap Searched . | . . . Spaces Dug . | . . . Terrain Destroyed . | . . . Melee . | . . . Projectile . | . . . AOE . | . . . Actions | -11 -10 -9 --------- Run | Scr Mat Mat Total 672 | 52 121 499 Wait 101 | 4 20 77 Move 417 | 33 94 290 Hop . | . . . Pick Up 20 | 9 1 10 Fast Attach 3 | . . 3 Attach 20 | 6 1 13 Detach 1 | . 1 . Swap 9 | . 1 8 Drop 5 | . . 5 Fire 36 | . 3 33 Melee 60 | . . 60 Ram . | . . . Kick . | . . . Crush . | . . . Escape Stasis . | . . . Rewire . | . . . Trap . | . . . Miscellaneous . | . . . Route ------- -11/Scrapyard -10/Materials -9/Materials History --------- Turn | Location | Event 26 | -11/Scrapyard | Discovered new exit (range 16) 56 | -11/Scrapyard | Entered Materials 180 | -10/Materials | Discovered new exit (range 16) 198 | -10/Materials | Entered another Materials area 198 | -9/Materials | Evolved 2 slots: Propulsion x1, Utility x1 313 | -9/Materials | Build established: Mutant 798 | -9/Materials | Lost 9 parts (2p3n2u2w) 807 | -9/Materials | Destroyed 8 combat bots 823 | -9/Materials | Core integrity fell below 50% 972 | -9/Materials | Lost 5 parts (1p1n3w) 1000 | -9/Materials | Core integrity fell below 20% 1067 | -9/Materials | Destroyed by Y-45 Defender with Beam Rifle Last Messages --------------- 00897_ R-06 Scavenger inserts Wheel into recycling unit. 00900_ R-06 Scavenger collects Terrain Scan Processor. 00904_ R-06 Scavenger collects Structural Scanner. 00905_ R-06 Scavenger collects Wheel. 00908_ Imp. Ion Engine destroyed. 00916_ U-05 Engineer lays Concrete. 00916_ Y-45 Defender destroyed. 00918_ R-06 Scavenger collects Lgt. Armor Plating. 00919_ G-34 Mercenary destroyed. 00921_ R-06 Scavenger collects Imp. Ion Engine. 00921_ Flight Unit destroyed. 00923_ Sml. Laser destroyed. 00929_ R-06 Scavenger collects Ion Engine. 00931_ G-34 Mercenary destroyed. 00933_ R-06 Scavenger collects Ion Engine. 00936_ R-06 Scavenger collects Aluminum Leg. 00941_ Assault Rifle destroyed. 00979_ K-01 Serf cleans the Matter Filter. 00996_ Targeting Computer destroyed. 01016_ Imp. Ion Engine destroyed. Map ----- +----------------------------------------------------+ | #???????????????????????????????????????????????? | | #???????????????????????????????????????????????? | | #???????????????????????????????????????????????? | | #???????????????????????????????????????????????? | | ##???????????????????????????????????????????????? | | ?????????????????????????????????????????????????? | | ?????????????????????????????????????????????????? | | ####?????????????????????????????????????????????? | | ?????????????????????????????????????????????? | | ?????????????????????????????????????????????? | | ????????????????????? +????????????????????? | | #????????????????????? #????????????????????? | | #????????????????????? #????????????????????? | | #????????????????????? #????????????????????? | | /????????????????????? #????????????????????? | | #????????????????????? #????????????????????? | | #????????????????????? #????????????????????? | | #????????????????????# +????????????????????? | | #????????????????????# #????????????????????? | | #????????????????????# #????????????????????? | | #????????????????????# #????????????????????? | | ###################### #????????????????????? | | #????????????????????? | | #????????????????????? | | #????????????????????? | | ######+##################@ #????????????????????? | | ??# #????????????# #????????????????????? | | ??# """#????????????# #????????????????????? | | ??# """#???????????? #???????????????????? | | ??# """#???????????? ??????????????????? | | ??# #???????????? Y ?????????????????? | | ??# """#???????????? ????????????????? | | ??# """#???????????# #####???????????????? | | ??# """#???????????#######???????????????????? | | ??# ??????????????????????????????????????? | | ??########???????????????????????????????????????? | | ?????????????????????????????????????????????????? | | ?????????????????????????????????????????????????? | | ?????????????????????????????????????????????????? | | ?????????????????????????????????????????????????? | | ?????????????????????????????????????????????????? | | ?????????????????????????????????????????????????? | | ?????????????????????????????????????????????????? | | | | | | | | | | | | | | | +----------------------------------------------------+ Best States ------------- Heat Dissipation 28 Energy Generation 12 Energy Capacity 265 Matter Stores 300 Matter Capacity 300 Sight Range 16 Robot Scan Range 10 Terrain Scan Density 10 Armor Coverage 150 Resistance: KI 20 Resistance: TH 20 Resistance: EX 20 Resistance: EM 20 Resistance: I 20 Resistance: S 20 Resistance: P 20 Evasion (%) 44 Targeting Accuracy 5 Offensive Hacking 10 Item Schematics ----------------- None Robot Schematics ------------------ None Fabricated ------------ Nothing Alien Tech Used ----------------- None Achievements -------------- None Challenges ------------ None Game ------ Seed HelicalAerolevStreamer Manual? 0 Play Time 00:17:57 Cumulative 10.6 hours Start 2020.06.17 @ 23:48:59 End 2020.06.18 @ 00:04:16 Sessions 1 Manual Loads 0 Difficulty Adventurer Special Mode None Game No. 15 Rogue 7 Adventurer 8 Explorer 0 Win Type - Total 0 Types 0/0/0/0/0/0/0 Lore% 5 Gallery% 17 Achievement% 12 Wizard Run 0 Options --------- ASCII 0 Keyboard 0 Movement Mouse Keybinds 0 Fullscreen 2 Font 36/TerminusFine Map View 76x50 Tactical HUD 1 Map Filters NONE Filters NONE Steam 1 RUN: 01a5bb8d-dce4-4a10-a9c2-45fdb21de8d7